bitfinex/quotes_BTCUSD_20240728
["timestamp","ask_amount","ask_price","bid_price","bid_amount"]
[1722174789663,0.04843684,68176.0,68175.0,0.629649]
[1722174790144,0.04843684,68176.0,68175.0,0.394959]
[1722174791158,0.04843684,68176.0,68175.0,0.629649]
[1722174791453,0.05127183,68176.0,68175.0,0.629649]
[1722174791607,0.18243272,68176.0,68175.0,0.394959]
[1722174792015,0.05043684,68176.0,68175.0,0.394959]
[1722174792216,0.05043684,68176.0,68175.0,0.629649]
[1722174792474,0.05043684,68176.0,68175.0,0.394959]
[1722174792765,0.05043684,68176.0,68175.0,0.629649]
[1722174792939,0.05043684,68176.0,68175.0,0.394959]
[1722174792940,0.07345999,68176.0,68175.0,0.394959]
[1722174793199,0.07145999,68176.0,68175.0,0.394959]
[1722174793355,0.07345999,68176.0,68175.0,0.394959]
[1722174794491,0.07145999,68176.0,68175.0,0.394959]
[1722174794689,0.07345999,68176.0,68175.0,0.394959]
[1722174795354,0.05043684,68176.0,68175.0,0.394959]
[1722174795769,0.04843684,68176.0,68175.0,0.394959]
[1722174797919,0.07145996,68176.0,68175.0,0.394959]
[1722174798774,0.09502504,68176.0,68175.0,0.394959]
[1722174798945,0.09502504,68176.0,68175.0,0.629649]
[1722174800190,0.08904881,68176.0,68175.0,0.939539]
[1722174800453,0.08904881,68176.0,68175.0,0.704849]
[1722174800658,0.08904881,68176.0,68175.0,1.004839]
[1722174800858,0.15254466,68176.0,68175.0,1.004839]
[1722174801083,0.19913612,68176.0,68175.0,1.004839]
[1722174801682,0.15751551,68176.0,68175.0,1.004839]
[1722174801960,0.22649479,68176.0,68175.0,1.004839]
[1722174802552,0.07045406,68176.0,68175.0,1.004839]
[1722174802727,0.11668937,68176.0,68175.0,1.004839]
[1722174803139,0.09366677,68176.0,68175.0,1.004839]
[1722174803329,0.04743146,68176.0,68175.0,1.004839]
[1722174803530,0.09347144,68176.0,68175.0,1.004839]
[1722174803772,0.09347144,68176.0,68175.0,0.770149]
[1722174804127,0.09347144,68176.0,68175.0,1.004839]
[1722174804326,0.04743146,68176.0,68175.0,0.770149]
[1722174804536,0.20328479,68176.0,68175.0,0.770149]
[1722174804936,0.20328479,68176.0,68175.0,1.004839]
[1722174804937,0.09320946,68176.0,68175.0,1.004839]
[1722174805285,0.20328596,68176.0,68175.0,0.770149]
[1722174805484,0.20328596,68176.0,68175.0,1.004839]
[1722174806031,0.20328596,68176.0,68175.0,0.770149]
[1722174806429,0.11623184,68176.0,68175.0,0.770149]
[1722174806734,0.20328405,68176.0,68175.0,0.770149]
[1722174806887,0.20328405,68176.0,68175.0,1.004839]
[1722174807068,0.20328405,68176.0,68175.0,0.770149]
[1722174807069,0.20528405,68176.0,68175.0,0.770149]
[1722174807265,0.09520946,68176.0,68175.0,0.704849]
[1722174807544,0.15826029,68176.0,68175.0,0.629649]
[1722174810242,0.18128279,68176.0,68175.0,0.629649]
[1722174810657,0.18141122,68176.0,68175.0,0.629649]
[1722174811244,0.29149089,68176.0,68175.0,0.629649]
[1722174812823,0.26846839,68176.0,68175.0,0.629649]
[1722174813034,0.20546839,68176.0,68175.0,0.629649]
[1722174813230,0.20546839,68176.0,68175.0,0.711949]
[1722174814206,0.20548021,68176.0,68175.0,0.711949]
[1722174814551,0.15872684,68176.0,68175.0,0.711949]
[1722174814755,0.2054783,68176.0,68175.0,0.711949]
[1722174815360,0.2054783,68176.0,68175.0,0.629649]
[1722174815553,0.09540814,68176.0,68175.0,0.629649]
[1722174816218,0.11843064,68176.0,68175.0,0.629649]
[1722174816424,0.09556518,68176.0,68175.0,0.629649]
[1722174816629,0.04865668,68176.0,68175.0,0.629649]
[1722174816846,0.0497485,68176.0,68175.0,0.629649]
[1722174816977,0.09556518,68176.0,68175.0,0.629649]
[1722174817390,0.09555726,68176.0,68175.0,0.629649]
[1722174819497,0.17535726,68176.0,68175.0,0.629649]
[1722174819818,0.19837976,68176.0,68175.0,0.629649]
[1722174820000,0.11857976,68176.0,68175.0,0.629649]
[1722174820914,0.11855718,68176.0,68175.0,0.629649]
[1722174821695,0.09553468,68176.0,68175.0,0.629649]
[1722174822528,0.09553468,68176.0,68175.0,0.711949]
[1722174822529,0.09353468,68176.0,68175.0,0.711949]
[1722174822876,0.09553468,68176.0,68175.0,0.711949]
[1722174823792,0.09553468,68176.0,68175.0,0.629649]
[1722174824134,0.0955037,68176.0,68175.0,0.629649]
[1722174824635,0.04865668,68176.0,68175.0,0.629649]
[1722174824814,0.04968702,68176.0,68175.0,0.629649]
[1722174825037,0.1185262,68176.0,68175.0,0.629649]
[1722174825510,0.11930859,68176.0,68175.0,0.629649]
[1722174825732,0.1165262,68176.0,68175.0,0.629649]
[1722174826447,0.0955037,68176.0,68175.0,0.629649]
[1722174827626,0.04865668,68176.0,68175.0,0.629649]
[1722174827839,0.09548973,68176.0,68175.0,0.629649]
[1722174828057,0.22771326,68176.0,68175.0,0.629649]
[1722174828763,0.22571326,68176.0,68175.0,0.629649]
[1722174828971,0.22771326,68176.0,68175.0,0.629649]
[1722174829461,0.24873576,68176.0,68175.0,0.629649]
[1722174830188,0.25073576,68176.0,68175.0,0.629649]
[1722174830906,0.09548973,68176.0,68175.0,0.629649]
[1722174831143,0.2257146,68176.0,68175.0,0.629649]
[1722174831545,0.2277146,68176.0,68175.0,0.629649]
[1722174833095,0.2257146,68176.0,68175.0,0.629649]
[1722174833305,0.2277146,68176.0,68175.0,0.629649]
[1722174834281,0.24873714,68176.0,68175.0,0.629649]
[1722174834546,0.22551842,68176.0,68175.0,0.629649]
[1722174835161,0.22751842,68176.0,68175.0,0.629649]
[1722174836567,0.22725835,68176.0,68175.0,0.629649]
[1722174836916,0.22729613,68176.0,68175.0,0.629649]
[1722174837539,0.22529613,68176.0,68175.0,0.394959]
[1722174837740,0.32550024,68176.0,68175.0,0.394959]
[1722174837983,0.39070024,68176.0,68175.0,0.394959]
[1722174838287,0.36767779,68176.0,68175.0,0.629649]
[1722174840940,0.39666191,68176.0,68175.0,0.042924]
[1722174841111,0.38175997,68176.0,68175.0,0.042924]
[1722174841312,0.46161393,68176.0,68175.0,0.042924]
[1722174841563,0.34427093,68176.0,68175.0,0.042924]
[1722174841776,0.46161393,68176.0,68175.0,0.042924]
[1722174842333,0.45961393,68176.0,68175.0,0.042924]
[1722174842695,0.43659139,68176.0,68175.0,0.042924]
[1722174843103,0.43859139,68176.0,68175.0,0.042924]
[1722174843662,0.24139443,68176.0,68175.0,0.042924]
[1722174843883,0.24078412,68176.0,68175.0,0.042924]
[1722174844052,0.09838412,68176.0,68175.0,0.042924]
[1722174844255,0.09838412,68176.0,68175.0,0.160269]
[1722174845039,0.09838412,68176.0,68175.0,0.042924]
[1722174845441,0.10038412,68176.0,68175.0,0.037924]
[1722174845842,0.12343918,68176.0,68175.0,0.155269]
[1722174846091,0.10041641,68176.0,68175.0,0.155269]
[1722174846493,0.10036933,68176.0,68175.0,0.155269]
[1722174846720,0.17976933,68176.0,68175.0,0.037924]
[1722174847056,0.24186933,68176.0,68175.0,0.037924]
[1722174849566,0.26489233,68176.0,68175.0,0.037924]
[1722174849876,0.2416809,68176.0,68175.0,0.037924]
[1722174852752,0.3590239,68176.0,68175.0,0.037924]
[1722174853115,0.38204702,68176.0,68175.0,0.037924]
[1722174853325,0.38209105,68176.0,68175.0,0.037924]
[1722174853886,0.26478532,68176.0,68175.0,0.037924]
[1722174855230,0.2417622,68176.0,68175.0,0.037924]
[1722174855588,0.3591052,68176.0,68175.0,0.037924]
[1722174855831,0.2417622,68176.0,68175.0,0.037924]
[1722174856549,0.19587284,68176.0,68175.0,0.037924]
[1722174856754,0.24232861,68176.0,68175.0,0.037924]
[1722174858100,0.2653517,68176.0,68175.0,0.037924]
[1722174858547,0.24232861,68176.0,68175.0,0.037924]
[1722174859878,0.24219724,68176.0,68175.0,0.037924]
[1722174861691,0.26522037,68176.0,68175.0,0.037924]
[1722174862731,1.2160529,68176.0,68175.0,0.037924]
[1722174862927,1.1660529,68176.0,68175.0,0.037924]
[1722174863129,1.16727384,68176.0,68175.0,0.037924]
[1722174863353,1.35175142,68176.0,68175.0,0.037924]
[1722174863881,1.35239904,68176.0,68175.0,0.014]
[1722174864088,1.56923276,68176.0,68175.0,0.014]
[1722174864290,1.45365861,68176.0,68175.0,0.021]
[1722174865054,1.45365861,68176.0,68175.0,0.007]
[1722174865856,1.45365861,68176.0,68175.0,0.014]
[1722174866090,1.47668444,68176.0,68175.0,0.014]
[1722174866507,1.45365861,68176.0,68175.0,0.014]
[1722174867095,1.50365861,68176.0,68175.0,0.014]
[1722174867259,1.35339904,68176.0,68175.0,0.014]
[1722174869308,1.32642486,68176.0,68175.0,0.014]
[1722174869733,1.20011866,68176.0,68175.0,0.014]
[1722174869916,1.32619513,68176.0,68175.0,0.014]
[1722174870319,1.30316931,68176.0,68175.0,0.014]
[1722174872895,1.44428819,68176.0,68175.0,0.014]
[1722174873097,1.49361258,68176.0,68175.0,0.014]
[1722174873514,1.36821172,68176.0,68175.0,0.014]
[1722174873688,1.46663862,68176.0,68175.0,0.014]
[1722174873897,1.51663862,68176.0,68175.0,0.014]
[1722174874245,1.46663862,68176.0,68175.0,0.014]
[1722174874444,1.46807773,68176.0,68175.0,0.014]
[1722174874626,1.46663862,68176.0,68175.0,0.014]
[1722174874833,1.32351974,68176.0,68175.0,0.01395]
[1722174875039,1.32551974,68176.0,68175.0,0.01395]
[1722174875499,1.32513783,68176.0,68175.0,0.01395]
[1722174875799,1.37513783,68176.0,68175.0,0.01395]
[1722174876526,1.37567757,68176.0,68175.0,0.01395]
[1722174876939,1.37525113,68176.0,68175.0,0.01395]
[1722174877483,1.35222508,68176.0,68175.0,0.01395]
[1722174877957,1.30022508,68176.0,68175.0,0.01395]
[1722174880285,1.45048465,68176.0,68175.0,0.01395]
[1722174880500,1.47351075,68176.0,68175.0,0.01395]
[1722174880678,1.47551075,68176.0,68175.0,0.01395]
[1722174881510,1.47551075,68176.0,68175.0,0.014874]
[1722174882059,1.45248465,68176.0,68175.0,0.014874]
[1722174882513,1.45048465,68176.0,68175.0,0.014874]
[1722174883240,1.45005833,68176.0,68175.0,0.014874]
[1722174883719,1.45205833,68176.0,68175.0,0.014874]
[1722174884519,1.25624215,68176.0,68175.0,0.014874]
[1722174884719,1.29367055,68176.0,68175.0,0.014874]
[1722174885125,1.31669665,68176.0,68175.0,0.014874]
[1722174885438,1.31869665,68176.0,68175.0,0.014874]
[1722174885641,1.31691083,68176.0,68175.0,0.014874]
[1722174885842,1.31891083,68176.0,68175.0,0.014874]
[1722174886161,1.29588473,68176.0,68175.0,0.014874]
[1722174886371,1.17096463,68176.0,68175.0,0.014874]
[1722174886570,1.29563799,68176.0,68175.0,0.014874]
[1722174888660,1.29363799,68176.0,68175.0,0.014874]
[1722174888882,1.29563799,68176.0,68175.0,0.014874]
[1722174889243,1.31866372,68176.0,68175.0,0.014874]
[1722174889442,1.31666372,68176.0,68175.0,0.014874]
[1722174889684,1.29363799,68176.0,68175.0,0.014874]
[1722174889939,1.29394435,68176.0,68175.0,0.014874]
[1722174890257,1.29594435,68176.0,68175.0,0.014874]
[1722174890460,1.41290142,68176.0,68175.0,0.014874]
[1722174892300,1.41090142,68176.0,68175.0,0.014874]
[1722174892714,1.29594435,68176.0,68175.0,0.014874]
[1722174892914,1.31897008,68176.0,68175.0,0.014874]
[1722174893140,1.31923279,68176.0,68175.0,0.014874]
[1722174893556,1.31723279,68176.0,68175.0,0.014874]
[1722174893762,1.23983279,68176.0,68175.0,0.014874]
[1722174893963,0.64954179,68176.0,68175.0,0.014874]
[1722174894199,0.79603265,68176.0,68175.0,0.014874]
[1722174894828,0.79803265,68176.0,68175.0,0.014874]
[1722174895593,0.79545108,68176.0,68175.0,0.014874]
[1722174895813,0.56076508,68176.0,68175.0,0.014874]
[1722174896458,0.51734721,68176.0,68175.0,0.014874]
[1722174896797,0.56332869,68176.0,68175.0,0.014874]
[1722174897540,0.79801469,68176.0,68175.0,0.014874]
[1722174898512,0.64952383,68176.0,68175.0,0.014874]
[1722174899025,0.64752383,68176.0,68175.0,0.014874]
[1722174899262,0.72862383,68176.0,68175.0,0.014874]
[1722174899471,0.72662383,68176.0,68175.0,0.014874]
[1722174899673,0.60339936,68176.0,68175.0,0.014874]
[1722174899834,0.72788269,68176.0,68175.0,0.014874]
[1722174900035,0.89917759,68176.0,68175.0,0.014874]
[1722174900503,0.64678269,68176.0,68175.0,0.014874]
[1722174900694,0.64878269,68176.0,68175.0,0.014874]
[1722174901048,0.79734876,68176.0,68175.0,0.014874]
[1722174901885,0.52429936,68176.0,68175.0,0.014874]
[1722174902299,0.64761931,68176.0,68175.0,0.014874]
[1722174902492,0.79619658,68176.0,68175.0,0.094774]
[1722174902667,0.56152378,68176.0,68175.0,0.094774]
[1722174902880,0.52429936,68176.0,68175.0,0.094774]
[1722174903102,0.79640954,68176.0,68175.0,0.094774]
[1722174903494,0.64781752,68176.0,68175.0,0.094774]
[1722174904392,0.64781752,68176.0,68175.0,0.278919]
[1722174904393,0.34441067,68176.0,68175.0,0.278919]
[1722174904573,0.34441067,68176.0,68175.0,0.748299]
[1722174904574,0.19370905,68176.0,68175.0,0.748299]
[1722174904779,0.11733844,68176.0,68175.0,0.748299]
[1722174905018,0.11533844,68176.0,68175.0,0.748299]
[1722174905221,0.11733844,68176.0,68175.0,0.748299]
[1722174905433,0.11727367,68176.0,68175.0,0.748299]
[1722174905685,0.11527367,68176.0,68175.0,0.748299]
[1722174905837,0.11727367,68176.0,68175.0,0.748299]
[1722174906410,0.11527367,68176.0,68175.0,0.513609]
[1722174906809,0.11727367,68176.0,68175.0,0.513609]
[1722174911291,0.11527367,68176.0,68175.0,0.513609]
[1722174911697,0.11727367,68176.0,68175.0,0.513609]
[1722174912333,0.07227036,68176.0,68175.0,0.513609]
[1722174912531,0.11716297,68176.0,68175.0,0.513609]
[1722174913144,0.11716297,68176.0,68175.0,0.748299]
[1722174913346,0.11716297,68176.0,68175.0,0.513609]
[1722174915166,0.11742173,68176.0,68175.0,0.513609]
[1722174915612,0.11736462,68176.0,68175.0,0.513609]
[1722174917232,0.11536462,68176.0,68175.0,0.513609]
[1722174917587,0.11736462,68176.0,68175.0,0.513609]
[1722174917792,0.11736462,68176.0,68175.0,0.278919]
[1722174918002,0.11736462,68176.0,68175.0,0.213619]
[1722174918687,0.11736462,68176.0,68175.0,0.096274]
[1722174918688,0.19558771,68176.0,68175.0,0.096274]
[1722174918818,0.19558771,68176.0,68175.0,0.213619]
[1722174919837,0.19558771,68176.0,68175.0,0.448309]
[1722174920458,0.1152482,68176.0,68175.0,0.448309]
[1722174920664,0.07221325,68176.0,68175.0,0.448309]
[1722174920840,0.15065561,68176.0,68175.0,0.213619]
[1722174921186,0.19379935,68176.0,68175.0,0.213619]
[1722174921700,0.19579935,68176.0,68175.0,0.213619]
[1722174921946,0.19602621,68176.0,68175.0,0.213619]
[1722174922676,0.19602621,68176.0,68175.0,0.096274]
[1722174923128,0.19602621,68176.0,68175.0,0.213619]
[1722174925163,0.1959664,68176.0,68175.0,0.213619]
[1722174925716,0.1959664,68176.0,68175.0,0.448309]
[1722174925917,0.1959664,68176.0,68175.0,0.511509]
[1722174926602,0.24953074,68176.0,68175.0,0.461509]
[1722174927365,0.11744196,68176.0,68175.0,0.696199]
[1722174927526,0.11744196,68176.0,68175.0,0.461509]
[1722174927930,0.24953074,68176.0,68175.0,0.461509]
[1722174928169,0.11744196,68176.0,68175.0,0.696199]
[1722174928570,0.11744196,68176.0,68175.0,0.930889]
[1722174928571,0.11160985,68176.0,68175.0,0.930889]
[1722174928796,0.19965012,68176.0,68175.0,0.930889]
[1722174928972,0.13826781,68176.0,68175.0,0.930889]
[1722174929400,0.13626781,68176.0,68175.0,0.930889]
[1722174929619,0.13826781,68176.0,68175.0,0.930889]
[1722174930000,0.11524208,68176.0,68175.0,0.930889]
[1722174930251,0.11523096,68176.0,68175.0,0.930889]
[1722174930622,0.11522471,68176.0,68175.0,0.930889]
[1722174930830,0.1372531,68176.0,68175.0,0.930889]
[1722174931049,0.09349876,68176.0,68175.0,0.930889]
[1722174931251,0.04921283,68176.0,68175.0,0.930889]
[1722174931449,0.18144913,68176.0,68175.0,0.696199]
[1722174931663,0.09340886,68176.0,68175.0,0.696199]
[1722174931922,0.18142303,68176.0,68175.0,0.696199]
[1722174932257,0.09979446,68176.0,68175.0,0.461509]
[1722174932486,0.209815,68176.0,68175.0,0.398309]
[1722174932661,0.09979446,68176.0,68175.0,0.632999]
[1722174933035,0.12281802,68176.0,68175.0,0.398309]
[1722174933458,0.12281802,68176.0,68175.0,0.117345]
[1722174933902,0.00797623,68175.0,68174.0,0.117346]
[1722174934103,0.09795446,68175.0,68174.0,0.352039]
[1722174934659,0.20798831,68175.0,68174.0,0.352039]
[1722174934864,0.16220436,68175.0,68174.0,0.352039]
[1722174935051,0.09740232,68175.0,68174.0,0.352039]
[1722174935430,0.09840232,68175.0,68174.0,0.359039]
[1722174935652,0.20843442,68175.0,68174.0,0.359039]
[1722174936279,0.09840232,68175.0,68174.0,0.359039]
[1722174936617,0.09940232,68175.0,68174.0,0.366039]
[1722174937060,0.05417226,68175.0,68174.0,0.366039]
[1722174937261,0.09934572,68175.0,68174.0,0.366039]
[1722174937389,0.09734572,68175.0,68174.0,0.366039]
[1722174938459,0.05217226,68175.0,68174.0,0.366039]
[1722174938669,0.09730714,68175.0,68174.0,0.366039]
[1722174939021,0.12033062,68175.0,68174.0,0.366039]
[1722174939221,0.09730714,68175.0,68174.0,0.366039]
[1722174939434,0.09930714,68175.0,68174.0,0.366039]
[1722174941113,0.05511111,68175.0,68174.0,0.366039]
[1722174941334,0.09613521,68175.0,68174.0,0.366039]
[1722174941709,0.05100033,68175.0,68174.0,0.131346]
[1722174942085,0.05100033,68175.0,68174.0,0.366039]
[1722174942086,0.09598751,68175.0,68174.0,0.366039]
[1722174942273,0.18309962,68175.0,68174.0,0.366039]
[1722174942404,0.25111255,68175.0,68174.0,0.366039]
[1722174942608,0.09599087,68175.0,68174.0,0.366039]
[1722174942829,0.22809751,68175.0,68174.0,0.366039]
[1722174943136,0.09599087,68175.0,68174.0,0.366039]
[1722174943531,0.22809751,68175.0,68174.0,0.366039]
[1722174944210,0.22790273,68175.0,68174.0,0.366039]
[1722174945521,0.09579161,68175.0,68174.0,0.366039]
[1722174945929,0.22790273,68175.0,68174.0,0.366039]
[1722174946353,0.09579161,68175.0,68174.0,0.131346]
[1722174947012,0.09579161,68175.0,68174.0,0.13227]
[1722174947420,0.11881513,68175.0,68174.0,0.13227]
[1722174948411,0.11867299,68175.0,68174.0,0.13227]
[1722174950434,0.11867299,68175.0,68174.0,0.366963]
[1722174950572,0.25083044,68175.0,68174.0,0.366963]
[1722174951134,0.11867299,68175.0,68174.0,0.366963]
[1722174951693,0.07402385,68175.0,68174.0,0.366963]
[1722174952066,0.11857404,68175.0,68174.0,0.366963]
[1722174952271,0.07402385,68175.0,68174.0,0.366963]
[1722174952467,0.11857404,68175.0,68174.0,0.366963]
[1722174953052,0.11857404,68175.0,68174.0,0.014924]
[1722174953253,0.39072673,68175.0,68174.0,0.13227]
[1722174953473,0.25857404,68175.0,68174.0,0.13227]
[1722174955078,0.19558374,68175.0,68174.0,0.13227]
[1722174955234,0.11828374,68175.0,68174.0,0.13227]
[1722174955703,0.09526022,68175.0,68174.0,0.13227]
[1722174956825,0.09887727,68175.0,68174.0,0.13227]
[1722174957058,0.09887727,68175.0,68174.0,0.014924]
[1722174957182,0.09887727,68175.0,68174.0,0.13227]
[1722174957964,0.09887727,68175.0,68174.0,0.014924]
[1722174958170,0.59091227,68175.0,68174.0,0.014924]
[1722174958567,0.77289653,68175.0,68174.0,0.014924]
[1722174958717,0.90310812,68175.0,68174.0,0.014924]
[1722174958919,0.92613373,68175.0,68174.0,0.014924]
[1722174959493,0.90310812,68175.0,68174.0,0.014924]
[1722174961269,0.90231411,68175.0,68174.0,0.014924]
[1722174961750,0.90228319,68175.0,68174.0,0.014924]
[1722174962779,0.92530838,68175.0,68174.0,0.014924]
[1722174963440,0.90228319,68175.0,68174.0,0.014874]
[1722174963848,0.78134238,68175.0,68174.0,0.014874]
[1722174964027,0.90238451,68175.0,68174.0,0.014874]
[1722174966696,0.92340966,68175.0,68174.0,0.014874]
[1722174966924,0.92540966,68175.0,68174.0,0.014874]
[1722174967118,1.07380371,68175.0,68174.0,0.014874]
[1722174967368,0.92504175,68175.0,68174.0,0.014874]
[1722174967699,0.9020166,68175.0,68174.0,0.014874]
[1722174969434,0.9520166,68175.0,68174.0,0.014874]
[1722174969848,1.1867066,68175.0,68174.0,0.014874]
[1722174970473,1.06603238,68175.0,68174.0,0.014874]
[1722174970817,1.18689561,68175.0,68174.0,0.007874]
[1722174971036,1.18661862,68175.0,68174.0,0.007874]
[1722174971252,1.21064496,68175.0,68174.0,0.007874]
[1722174971577,1.20864496,68175.0,68174.0,0.000924]
[1722174972005,1.19361862,68175.0,68174.0,0.000924]
[1722174972662,1.33987819,68175.0,68174.0,0.000924]
[1722174972880,1.33587819,68175.0,68174.0,0.000924]
[1722174973287,1.33787819,68175.0,68174.0,0.000924]
[1722174973665,1.33588732,68175.0,68174.0,0.000924]
[1722174974547,1.57157732,68175.0,68174.0,0.000924]
[1722174974760,1.68686399,68175.0,68174.0,0.000924]
[1722174974961,1.68586399,68175.0,68174.0,0.000924]
[1722174975087,1.71289202,68175.0,68174.0,0.000924]
[1722174975272,1.71689202,68175.0,68174.0,0.000924]
[1722174975474,1.92945947,68175.0,68174.0,0.000924]
[1722174975680,1.97058202,68175.0,68174.0,0.000924]
[1722174975916,1.95255399,68175.0,68174.0,0.001924]
[1722174976193,1.96055399,68175.0,68174.0,0.002924]
[1722174976786,1.81595862,68175.0,68174.0,0.002924]
[1722174977189,1.93774196,68175.0,68174.0,0.002924]
[1722174977393,1.25281572,68175.0,68174.0,0.002924]
[1722174977794,1.25081572,68175.0,68174.0,0.002924]
[1722174978680,1.2508226,68175.0,68174.0,0.002924]
[1722174980234,1.25110509,68175.0,68174.0,0.002924]
[1722174980658,1.12903238,68175.0,68174.0,0.002924]
[1722174980863,0.78370293,68175.0,68174.0,0.002924]
[1722174981059,0.40901293,68175.0,68174.0,0.002924]
[1722174981260,0.64525713,68175.0,68174.0,0.002924]
[1722174981458,0.40901293,68175.0,68174.0,0.002924]
[1722174981659,0.64170293,68175.0,68174.0,0.002924]
[1722174982081,0.63370293,68175.0,68174.0,0.001924]
[1722174982281,0.87039293,68175.0,68174.0,0.001924]
[1722174982532,0.86139293,68175.0,68174.0,0.001924]
[1722174982923,0.86139293,68175.0,68174.0,0.002924]
[1722174983123,0.86139293,68175.0,68174.0,0.000924]
[1722174983576,0.86139293,68175.0,68174.0,0.002924]
[1722174985433,1.0116525,68175.0,68174.0,0.002924]
[1722174986111,1.0116525,68175.0,68174.0,0.001924]
[1722174986775,1.03323393,68175.0,68174.0,0.001924]
[1722174986964,0.29624936,68175.0,68174.0,0.001924]
[1722174987177,0.12081437,68175.0,68174.0,0.18177]
[1722174987334,0.11926017,68175.0,68174.0,0.416463]
[1722174989055,0.11926017,68175.0,68174.0,0.652156]
[1722174989985,0.11926017,68175.0,68174.0,0.18277]
[1722174989986,0.11973294,68175.0,68174.0,0.18277]
[1722174990434,0.11973292,68175.0,68174.0,0.18277]
[1722174990790,0.11973292,68175.0,68174.0,0.417463]
[1722174991199,0.11973292,68175.0,68174.0,0.652156]
[1722174991427,0.11973292,68175.0,68174.0,0.731856]
[1722174991627,0.22967858,68175.0,68174.0,0.731856]
[1722174992446,0.22967591,68175.0,68174.0,0.731856]
[1722174993207,0.11914319,68175.0,68174.0,0.731856]
[1722174993838,0.11316696,68175.0,68174.0,0.966549]
[1722174994056,0.13448669,68175.0,68174.0,0.966549]
[1722174994234,0.06899791,68175.0,68174.0,0.966549]
[1722174994429,0.0250279,68175.0,68174.0,0.966549]
[1722174994674,0.06899791,68175.0,68174.0,0.966549]
[1722174995045,0.06899719,68175.0,68174.0,0.966549]
[1722174995252,0.0250279,68175.0,68174.0,0.965549]
[1722174996552,0.06898839,68175.0,68174.0,0.965549]
[1722174996750,0.0250279,68175.0,68174.0,0.965549]
[1722174997001,0.06898839,68175.0,68174.0,0.965549]
[1722174997150,0.0260279,68175.0,68174.0,0.973549]
[1722174997956,0.002,68175.0,68174.0,0.965549]
[1722174998558,0.003,68175.0,68174.0,0.977549]
[1722175001289,0.02602384,68175.0,68174.0,0.977549]
[1722175002902,0.02602384,68175.0,68174.0,0.976549]
[1722175003304,0.02702384,68175.0,68174.0,0.984549]
[1722175003904,0.02602384,68175.0,68174.0,0.976549]
[1722175004337,0.02702384,68175.0,68174.0,0.988549]
[1722175010344,0.004,68175.0,68174.0,0.988549]
[1722175013565,0.02702372,68175.0,68174.0,0.988549]
[1722175013766,0.07382613,68175.0,68174.0,0.988549]
[1722175013978,0.05080241,68175.0,68174.0,0.988549]
[1722175015934,0.05164241,68175.0,68174.0,0.988549]
[1722175018321,0.07466635,68175.0,68174.0,0.988549]
[1722175019172,0.07466635,68175.0,68174.0,0.846349]
[1722175019400,0.08064258,68175.0,68174.0,0.846349]
[1722175019572,0.08064258,68175.0,68174.0,0.611656]
[1722175020546,0.12483342,68175.0,68174.0,0.611656]
[1722175020691,0.16875967,68175.0,68174.0,0.611656]
[1722175021309,0.08064258,68175.0,68174.0,0.611656]
[1722175021484,0.16873395,68175.0,68174.0,0.611656]
[1722175021688,0.08064258,68175.0,68174.0,0.611656]
[1722175022025,0.16873383,68175.0,68174.0,0.611656]
[1722175022227,0.19070033,68175.0,68174.0,0.611656]
[1722175022720,0.21266683,68175.0,68174.0,0.611656]
[1722175023097,0.23463334,68175.0,68174.0,0.611656]
[1722175023319,0.12480083,68175.0,68174.0,0.611656]
[1722175023489,0.21273148,68175.0,68174.0,0.611656]
[1722175023687,0.16857323,68175.0,68174.0,0.611656]
[1722175023891,0.21281879,68175.0,68174.0,0.611656]
[1722175024107,0.12488814,68175.0,68174.0,0.611656]
[1722175024621,0.23472065,68175.0,68174.0,0.611656]
[1722175024815,0.12488814,68175.0,68174.0,0.611656]
[1722175024985,0.03384017,68175.0,68174.0,0.611656]
[1722175025186,0.187989,68175.0,68174.0,0.611656]
[1722175025867,0.12284596,68175.0,68174.0,0.611656]
[1722175026187,0.2108222,68175.0,68174.0,0.611656]
[1722175026409,0.20976417,68175.0,68174.0,0.611656]
[1722175026853,0.20953897,68175.0,68174.0,0.611656]
[1722175028570,0.21000459,68175.0,68174.0,0.611656]
[1722175028919,0.09997079,68175.0,68174.0,0.611656]
[1722175029998,0.12299488,68175.0,68174.0,0.611656]
[1722175030334,0.09997079,68175.0,68174.0,0.611656]
[1722175031749,0.09996116,68175.0,68174.0,0.611656]
[1722175033414,0.18136116,68175.0,68174.0,0.611656]
[1722175033768,0.26538529,68175.0,68174.0,0.611656]
[1722175033963,0.24236116,68175.0,68174.0,0.611656]
[1722175034366,0.24161683,68175.0,68174.0,0.611656]
[1722175035231,0.37384321,68175.0,68174.0,0.611656]
[1722175036069,0.24163685,68175.0,68174.0,0.611656]
[1722175036978,0.09923685,68175.0,68174.0,0.611656]
[1722175038361,0.05582667,68175.0,68174.0,0.611656]
[1722175038561,0.09923881,68175.0,68174.0,0.611656]
[1722175039532,0.1222631,68175.0,68174.0,0.611656]
[1722175039722,0.09923881,68175.0,68174.0,0.611656]
[1722175041769,0.09933566,68175.0,68174.0,0.611656]
[1722175042208,0.09933545,68175.0,68174.0,0.611656]
[1722175042911,0.12235974,68175.0,68174.0,0.611656]
[1722175044375,0.09933545,68175.0,68174.0,0.611656]
[1722175044985,0.05582667,68175.0,68174.0,0.611656]
[1722175045336,0.14282911,68175.0,68174.0,0.611656]
[1722175046498,0.27508107,68175.0,68174.0,0.611656]
[1722175047764,0.29810519,68175.0,68174.0,0.611656]
[1722175047945,0.27508107,68175.0,68174.0,0.611656]
[1722175048418,0.27517323,68175.0,68174.0,0.611656]
[1722175048614,0.23168741,68175.0,68174.0,0.611656]
[1722175050520,0.23168741,68175.0,68174.0,0.846349]
[1722175050878,0.09943519,68175.0,68174.0,0.611656]
[1722175051445,0.12245923,68175.0,68174.0,0.611656]
[1722175051663,0.07287448,68175.0,68174.0,0.989749]
[1722175051897,0.11621153,68175.0,68174.0,0.989749]
[1722175052118,0.07287448,68175.0,68174.0,0.989749]
[1722175052315,0.11620948,68175.0,68174.0,0.989749]
[1722175053072,0.09318544,68175.0,68174.0,0.989749]
[1722175054091,0.09378375,68175.0,68174.0,0.989749]
[1722175054875,0.04985044,68175.0,68174.0,0.989749]
[1722175055043,0.09398822,68175.0,68174.0,0.989749]
[1722175055701,0.04985044,68175.0,68174.0,0.989749]